bitfinex/quotes_SOLUSD_20251025
["timestamp","ask_amount","ask_price","bid_price","bid_amount"]
[1761371477499,16.39533704,194.73,194.7,2.29306232]
[1761371479387,16.39533704,194.73,194.7,1.62306232]
[1761371479590,16.39533704,194.73,194.7,2.29306232]
[1761371480715,16.39533704,194.73,194.7,3.20364393]
[1761371482286,16.39533704,194.73,194.7,2.53364393]
[1761371482488,0.7,194.72,194.7,2.53364393]
[1761371482808,16.43533704,194.73,194.7,3.22364393]
[1761371486579,15.73533704,194.73,194.69,5.13634751]
[1761371486784,16.43533704,194.73,194.71,2.53364393]
[1761371486988,16.43533704,194.73,194.7,13.41011914]
[1761371487820,0.7,194.72,194.7,13.41011914]
[1761371488289,15.73533704,194.73,194.7,13.41011914]
[1761371488492,0.7,194.72,194.7,13.41011914]
[1761371488793,0.7,194.72,194.68,38.01364393]
[1761371488993,0.7,194.72,194.69,10.87647521]
[1761371490115,5.13584304,194.71,194.68,11.56647521]
[1761371490499,0.7,194.7,194.67,10.87647521]
[1761371491011,3.23364393,194.7,194.63,0.69]
[1761371491215,2.53364393,194.69,194.64,13.41011914]
[1761371491386,3.23364393,194.69,194.64,13.41011914]
[1761371491582,0.7,194.68,194.64,13.41011914]
[1761371492007,5.83680934,194.68,194.64,13.41011914]
[1761371492216,5.83680934,194.68,194.63,2.53364393]
[1761371492386,0.7,194.67,194.62,13.41011914]
[1761371492885,0.7,194.67,194.62,14.10011914]
[1761371493615,5.13716223,194.66,194.62,14.10011914]
[1761371493798,5.13716223,194.66,194.62,13.41011914]
[1761371494004,0.7,194.65,194.62,13.41011914]
[1761371494895,0.7,194.65,194.62,10.87647521]
[1761371495511,0.7,194.65,194.62,11.56647521]
[1761371495701,0.7,194.65,194.62,14.10011914]
[1761371496809,5.13769009,194.64,194.61,0.2]
[1761371497007,7.67133402,194.64,194.61,0.2]
[1761371497209,0.7,194.63,194.61,0.2]
[1761371497818,3.22364393,194.62,194.61,0.2]
[1761371498221,3.92364393,194.62,194.61,0.2]
[1761371499005,9.06186199,194.62,194.61,0.2]
[1761371500109,5.83821806,194.62,194.61,0.2]
[1761371501109,8.37186199,194.62,194.61,0.2]
[1761371501725,10.90550592,194.62,194.61,0.2]
[1761371502229,21.60550592,194.62,194.61,0.2]
[1761371503102,16.53821806,194.62,194.61,0.2]
[1761371503519,22.29550592,194.62,194.61,0.2]
[1761371505916,18.37186199,194.62,194.61,0.2]
[1761371507610,19.07186199,194.62,194.61,0.2]
[1761371508030,21.1297398,194.62,194.61,0.2]
[1761371508233,18.59609587,194.62,194.61,0.2]
[1761371508417,16.53821806,194.62,194.61,0.2]
[1761371508729,18.59609587,194.62,194.61,0.2]
[1761371509212,21.1297398,194.62,194.61,0.2]
[1761371514243,17.89609587,194.62,194.61,0.2]
[1761371514544,18.61609587,194.62,194.61,0.2]
[1761371518335,21.1497398,194.62,194.61,0.2]
[1761371522240,56.6497398,194.62,194.61,0.2]
[1761371525643,56.5897398,194.62,194.61,0.2]
[1761371541543,55.9297398,194.62,194.61,0.2]
[1761371541750,51.33821806,194.62,194.61,0.9]
[1761371542256,10.7,194.62,194.61,0.9]
[1761371542585,5.13800153,194.63,194.61,0.9]
[1761371542739,5.13800153,194.63,194.62,0.7]
[1761371543364,5.13769009,194.64,194.62,0.7]
[1761371544959,5.13742614,194.65,194.62,0.7]
[1761371548566,15.83774631,194.64,194.62,0.7]
[1761371551850,15.83774631,194.64,194.61,0.2]
[1761371552047,16.53774631,194.64,194.61,0.9]
[1761371553343,15.83774631,194.64,194.61,0.2]
[1761371553566,15.83774631,194.64,194.62,0.7]
[1761371554182,15.83774631,194.64,194.61,0.9]
[1761371554845,15.83774631,194.64,194.62,0.7]
[1761371555047,18.1608774,194.64,194.61,0.9]
[1761371555264,18.1608774,194.64,194.61,0.2]
[1761371556067,0.7,194.63,194.61,0.2]
[1761371557455,5.13821806,194.62,194.61,0.2]
[1761371558481,0.7,194.63,194.61,0.2]
[1761371560083,5.13821806,194.62,194.61,0.2]
[1761371563559,5.83821806,194.62,194.61,0.2]
[1761371563768,5.13821806,194.62,194.61,0.2]
[1761371566872,5.93800057,194.63,194.61,0.9]
[1761371567269,5.93800057,194.63,194.62,0.7]
[1761371569771,5.93800057,194.63,194.61,0.2]
[1761371570099,5.93800057,194.63,194.61,0.9]
[1761371570963,5.93800057,194.63,194.61,0.2]
[1761371571280,5.93800057,194.63,194.62,0.7]
[1761371571891,5.93800057,194.63,194.61,0.9]
[1761371573190,5.93800057,194.63,194.62,0.7]
[1761371574392,5.13800057,194.63,194.62,0.7]
[1761371574791,5.13775713,194.64,194.62,0.7]
[1761371580970,5.83775713,194.64,194.62,0.7]
[1761371581176,0.7,194.64,194.62,2.32313109]
[1761371581696,0.7,194.64,194.63,0.67]
[1761371584189,5.13748923,194.65,194.63,0.67]
[1761371586294,5.13748923,194.65,194.62,1.62313109]
[1761371586496,5.84748923,194.65,194.62,2.29313109]
[1761371586702,5.84748923,194.65,194.62,0.67]
[1761371591093,0.71,194.64,194.61,0.2]
[1761371592688,2.33313109,194.64,194.61,0.2]
[1761371592901,1.62313109,194.62,194.61,0.2]
[1761371593204,6.76134915,194.62,194.61,0.2]
[1761371593510,7.47134915,194.62,194.61,0.2]
[1761371599910,42.97134915,194.62,194.61,0.2]
[1761371604724,43.88546284,194.62,194.61,0.2]
[1761371605825,66.76546284,194.62,194.61,0.2]
[1761371606033,68.82355241,194.62,194.61,0.2]
[1761371608707,45.94355241,194.62,194.61,0.2]
[1761371621536,45.94355241,194.62,194.61,1e-08]
[1761371625354,68.11355241,194.62,194.61,1e-08]
[1761371628156,68.80355241,194.62,194.61,1e-08]
[1761371630324,68.11355241,194.62,194.61,1e-08]
[1761371630525,68.11355241,194.62,194.61,0.68000001]
[1761371630736,68.11355241,194.62,194.61,1e-08]
[1761371633946,32.61355241,194.62,194.61,1e-08]
[1761371637650,32.61355241,194.62,194.61,0.68000001]
[1761371638338,32.61355241,194.62,194.61,1e-08]
[1761371640844,33.27355241,194.62,194.61,1e-08]
[1761371642861,24.93808957,194.62,194.61,0.70000001]
[1761371643038,22.88,194.62,194.61,0.70000001]
[1761371643538,2.05787781,194.63,194.61,0.70000001]
[1761371643934,109.87499602,194.64,194.61,0.70000001]
[1761371646762,107.33775124,194.64,194.61,0.70000001]
[1761371646965,112.47669877,194.64,194.61,0.70000001]
[1761371655655,107.33894753,194.64,194.61,0.70000001]
[1761371655862,22.88,194.65,194.63,2.53724478]
[1761371656248,22.88,194.65,194.64,0.7]
[1761371658269,5.13708795,194.67,194.64,0.7]
[1761371659251,5.79663447,194.68,194.64,0.7]
[1761371660946,21.22674891,194.68,194.64,0.7]
[1761371662263,23.76399369,194.68,194.64,0.7]
[1761371662467,2.53724478,194.66,194.61,0.70000001]
[1761371662676,2.53724478,194.66,194.61,3.23724479]
[1761371662973,0.69,194.65,194.61,3.23724479]
[1761371663173,0.69,194.65,194.62,0.7]
[1761371663381,16.70415009,194.65,194.62,0.7]
[1761371663564,12.83724478,194.67,194.62,3.23724478]
[1761371663762,3.22724478,194.67,194.62,3.23724478]
[1761371663948,2.53724479,194.66,194.63,0.7]
[1761371664352,5.82689834,194.67,194.63,0.7]
[1761371664578,8.36414312,194.67,194.63,0.7]
[1761371668580,8.36414312,194.67,194.63,2.32280307]
[1761371669377,7.67414312,194.67,194.64,0.7]
[1761371669765,8.36414312,194.67,194.64,0.7]
[1761371670274,0.69,194.66,194.62,2.32280307]
[1761371670581,8.36565243,194.66,194.62,0.7]
[1761371671979,5.13742614,194.65,194.62,0.7]
[1761371672166,5.13742614,194.65,194.62,2.32280307]
[1761371672880,5.13742614,194.65,194.61,1.62280308]
[1761371673083,0.69,194.64,194.61,1e-08]
[1761371673263,8.36565243,194.64,194.61,1e-08]
[1761371673675,0.69,194.63,194.61,1e-08]
[1761371674072,12.81352498,194.64,194.61,1e-08]
[1761371674386,13.50352498,194.64,194.61,1e-08]
[1761371674578,1.62280307,194.62,194.61,1e-08]
[1761371675200,25.19280307,194.62,194.61,1e-08]
[1761371676085,28.70821806,194.62,194.61,1e-08]
[1761371676277,30.33102113,194.62,194.61,1e-08]
[1761371701590,32.3892166,194.62,194.61,1e-08]
[1761371707815,134.5892166,194.62,194.61,1e-08]
[1761371713720,32.3892166,194.62,194.61,1e-08]
[1761371721018,31.6992166,194.62,194.6,1e-08]
[1761371721224,37.81280307,194.61,194.6,1e-08]
[1761371721528,44.30401535,194.61,194.6,1e-08]
[1761371721723,22.88,194.58,194.55,0.2]
[1761371722039,1.99999999,194.6,194.55,1e-08]
[1761371722040,1.62280307,194.56,194.55,1e-08]
[1761371722204,37.12280307,194.56,194.55,1e-08]
[1761371722522,22.88,194.53,194.51,0.2]
[1761371722728,50.68927827,194.56,194.51,0.2]
[1761371722729,37.12280307,194.52,194.51,0.2]
[1761371723229,42.95366262,194.52,194.51,0.2]
[1761371724607,42.95366262,194.52,194.47,0.69]
[1761371724608,22.88,194.49,194.47,0.69]
[1761371724812,58.38,194.49,194.46,0.69]
[1761371725028,60.00280307,194.49,194.46,0.69]
[1761371725221,1.62280307,194.48,194.46,0.69]
[1761371725723,5.14218131,194.47,194.46,0.69]
[1761371726119,6.76498438,194.47,194.46,0.69]
[1761371726819,7.68324681,194.47,194.46,0.69]
[1761371728132,5.1419169,194.48,194.46,0.69]
[1761371728343,2.5410655,194.47,194.46,0.69]
[1761371730342,7.68324681,194.47,194.46,0.69]
[1761371732144,5.14218131,194.47,194.46,0.69]
[1761371733926,7.68324681,194.47,194.46,0.69]
[1761371734740,5.14218131,194.47,194.46,0.69]
[1761371735126,7.68324681,194.47,194.46,0.69]
[1761371735527,5.14218131,194.47,194.46,0.69]
[1761371735927,7.6829824,194.48,194.46,0.69]
[1761371744455,5.1419169,194.48,194.46,0.69]
[1761371744948,7.6829824,194.48,194.46,0.69]
[1761371747525,2.5410655,194.47,194.45,0.2]
[1761371747965,2.5410655,194.47,194.45,0.89]
[1761371749554,5.14244574,194.46,194.45,0.89]
[1761371750739,66.08351124,194.46,194.45,0.2]
[1761371751048,66.77351124,194.46,194.45,0.2]
[1761371753069,77.27351124,194.46,194.45,0.2]
[1761371754641,74.73244574,194.46,194.45,0.2]
[1761371757442,54.39351124,194.46,194.45,0.2]
[1761371776356,22.88,194.44,194.43,0.2]
[1761371776562,38.0610655,194.44,194.43,0.2]
[1761371776758,38.7810655,194.44,194.43,0.2]
[1761371778391,43.92404019,194.44,194.43,0.2]
[1761371783874,40.66297469,194.44,194.43,0.92]
[1761371784178,43.86404019,194.44,194.43,0.2]
[1761371784487,43.20404019,194.44,194.43,0.2]
[1761371784783,5.14297469,194.44,194.43,0.92]
[1761371784973,43.20404019,194.44,194.43,0.2]
[1761371785280,40.66297469,194.44,194.43,0.2]
[1761371785882,43.20404019,194.44,194.43,0.2]
[1761371786072,43.86404019,194.44,194.43,0.2]
[1761371786675,42.95010853,194.44,194.43,0.2]
[1761371788486,41.32297469,194.44,194.43,0.2]
[1761371788679,42.95010853,194.44,194.43,0.2]
[1761371795797,45.01031815,194.44,194.43,0.2]
[1761371810721,45.01031815,194.44,194.43,1e-08]
[1761371814219,43.38318431,194.44,194.43,1e-08]
[1761371814423,45.01031815,194.44,194.43,1e-08]
[1761371816702,44.35031815,194.44,194.43,1e-08]
[1761371817102,45.07031815,194.44,194.43,1e-08]
[1761371817699,55.94679336,194.44,194.43,1e-08]
[1761371821525,55.94679336,194.44,194.42,1e-08]
[1761371821828,2.33713384,194.43,194.42,1e-08]
[1761371822417,4.397768,194.43,194.42,1e-08]
[1761371822934,9.54100721,194.43,194.42,1e-08]
[1761371825618,20.41748242,194.43,194.42,1e-08]
[1761371825823,19.70748242,194.43,194.41,1e-08]
[1761371826142,37.85713384,194.42,194.41,1e-08]
[1761371826639,39.91787416,194.42,194.41,1e-08]
[1761371827347,45.06137791,194.42,194.41,1e-08]
[1761371827630,59.56498695,194.42,194.41,1e-08]
[1761371827934,75.00498695,194.42,194.41,1e-08]
[1761371828137,59.56498695,194.42,194.41,1e-08]
[1761371832317,57.93785311,194.42,194.41,1e-08]
[1761371833235,55.93785312,194.42,194.41,1e-08]
[1761371835628,62.44638848,194.42,194.41,1e-08]
[1761371836222,55.93785312,194.42,194.41,1e-08]
[1761371841458,18.08071928,194.42,194.41,1e-08]
[1761371841637,8.83137791,194.42,194.41,0.71000001]
[1761371841840,44.37137791,194.42,194.41,0.71000001]
[1761371848731,45.287238,194.42,194.41,0.71000001]
[1761371852449,2.06074032,194.42,194.41,0.71000001]
[1761371852649,22.88,194.42,194.41,0.71000001]
[1761371853965,28.02350375,194.42,194.41,0.71000001]
[1761371854449,33.16832257,194.42,194.41,0.71000001]
[1761371854764,41.66832257,194.42,194.41,0.71000001]
[1761371855650,36.52350375,194.42,194.41,0.71000001]
[1761371857063,8.5,194.42,194.41,0.71000001]
[1761371857657,2.54299393,194.6,194.42,10.87647521]
[1761371857860,10.87647521,194.55,194.47,2.54299393]
[1761371858058,17.0,194.54,194.48,2.54299393]
[1761371858260,2.54299393,194.53,194.47,2.54299393]
[1761371858456,2.54299393,194.52,194.46,2.54299393]
[1761371858763,2.54299393,194.51,194.47,3.81141312]
[1761371858966,7.68413872,194.51,194.46,2.54299393]
[1761371859143,7.68413872,194.51,194.47,0.48]
[1761371859955,5.14114479,194.51,194.47,0.48]
[1761371861273,2.54299393,194.5,194.47,0.48]
[1761371861470,2.54299393,194.48,194.42,7.68649028]
[1761371861672,2.54299393,194.44,194.42,0.48]
[1761371861844,22.88,194.45,194.42,0.48]
[1761371862049,2.54299393,194.44,194.42,0.48]
[1761371862882,7.6860953,194.44,194.42,0.48]
[1761371864973,7.68644801,194.43,194.41,1e-08]
[1761371865161,2.54299393,194.42,194.41,1e-08]
[1761371865363,3.22299393,194.42,194.41,1e-08]
[1761371866855,31.24649768,194.42,194.41,1e-08]
[1761371867981,33.30691955,194.42,194.41,1e-08]
[1761371870884,33.34691955,194.42,194.41,1e-08]
[1761371871191,38.10299393,194.42,194.41,1e-08]
[1761371871362,40.64598786,194.42,194.41,1e-08]
[1761371872565,45.78949161,194.42,194.41,1e-08]
[1761371874471,46.50949161,194.42,194.41,1e-08]
[1761371875272,45.78949161,194.42,194.41,1e-08]
[1761371875684,46.50949161,194.42,194.41,1e-08]
[1761371877083,148.70949161,194.42,194.41,1e-08]
[1761371877404,146.16649768,194.42,194.41,1e-08]
[1761371877575,170.86949161,194.42,194.41,1e-08]
[1761371878970,168.32649768,194.42,194.41,1e-08]
[1761371879171,170.86949161,194.42,194.41,1e-08]
[1761371882093,171.58949161,194.42,194.41,1e-08]
[1761371884001,148.70949161,194.42,194.41,1e-08]
[1761371892497,151.25248554,194.42,194.41,1e-08]
[1761371893625,109.88649768,194.42,194.41,0.66000001]
[1761371893829,107.28598786,194.42,194.41,0.66000001]
[1761371894302,112.42949161,194.42,194.41,0.66000001]
[1761371894504,112.42949161,194.42,194.41,1e-08]
[1761371896839,10.22949161,194.42,194.41,0.66000001]
[1761371897529,18.22949161,194.42,194.41,0.66000001]
[1761371898432,15.68649768,194.42,194.41,0.66000001]
[1761371898638,18.22949161,194.42,194.41,0.66000001]
[1761371899430,15.68649768,194.42,194.41,2.66]
[1761371899638,18.22949161,194.42,194.41,2.66]
[1761371902714,15.68649768,194.42,194.41,2.66]
[1761371902915,15.68649768,194.42,194.41,0.66000001]
[1761371902916,18.22949161,194.42,194.41,0.66000001]
[1761371903226,18.22949161,194.42,194.41,2.66]
[1761371904912,10.54299393,194.42,194.41,2.66]
[1761371906440,15.68649768,194.42,194.41,2.66]
[1761371907745,15.68649768,194.42,194.41,0.66000001]
[1761371908237,29.10596682,194.42,194.41,0.66000001]
[1761371908737,15.68649768,194.42,194.41,0.66000001]
[1761371909038,20.83157009,194.42,194.41,0.66000001]
[1761371909831,20.83157009,194.42,194.41,1e-08]
[1761371910731,19.91609365,194.42,194.41,1e-08]
[1761371915247,19.91609365,194.42,194.41,0.67000001]
[1761371915743,19.91609365,194.42,194.41,1e-08]
[1761371915959,14.77102124,194.42,194.41,1e-08]
[1761371916561,14.77102124,194.42,194.41,0.67000001]
[1761371916949,14.77102124,194.42,194.41,1e-08]
[1761371917326,9.62751749,194.42,194.41,0.67000001]
[1761371917740,14.77102124,194.42,194.41,0.67000001]
[1761371918241,9.62751749,194.42,194.41,2.67]
[1761371918438,8.0,194.42,194.41,2.67]
[1761371918639,1.62751749,194.44,194.41,2.67]
[1761371918839,5.1427102,194.45,194.43,1.99999999]
[1761371919041,1.62751749,194.44,194.43,1.99999999]
[1761371919241,6.77049218,194.44,194.43,1.99999999]
[1761371919451,19.22589473,215.84,194.45,1.99999999]
[1761371919452,12.85410484,194.5,194.45,1.99999999]
[1761371919636,1.62751749,194.48,194.47,1.99999999]
[1761371920035,1.62751749,194.48,194.47,2.66999999]
[1761371920728,1.62751749,194.5,194.49,1.99999999]
[1761371920925,1.62751749,194.51,194.49,1.99999999]
[1761371921128,1.62751749,194.51,194.5,0.67]
[1761371921537,29.64864133,194.51,194.5,0.67]
[1761371921942,0.72,194.54,194.51,1.99999999]
[1761371921943,1.62751749,194.52,194.51,1.99999999]
[1761371922344,1.62751749,194.52,194.51,2.66999999]
[1761371922844,1.62751749,194.55,194.53,1.99999999]
[1761371923030,24.50751749,194.55,194.53,1.99999999]
[1761371923228,24.50751749,194.55,194.54,0.67]
[1761371923632,6.76758431,194.55,194.54,0.67]
[1761371923831,29.64758431,194.55,194.54,0.67]
[1761371924035,24.50751749,194.55,194.54,0.67]
[1761371924245,29.64758431,194.55,194.53,1.99999999]
[1761371924435,1.62751749,194.54,194.53,2.66999999]
[1761371924957,32.02006682,194.55,194.53,0.67]
[1761371925134,33.64758431,194.55,194.54,0.67]
[1761371925850,32.02006682,194.55,194.48,1.62751749]
[1761371926057,0.55435037,194.54,194.48,1.62751749]
[1761371926237,2.18186786,194.54,194.48,1.62751749]
[1761371926954,7.32236422,194.54,194.48,1.62751749]
[1761371927160,1.62751749,194.53,194.45,12.85671976]
[1761371927348,1.62751749,194.5,194.44,1.62751749]
[1761371928161,1.62751749,194.5,194.44,2.15751749]
[1761371928356,1.62751749,194.5,194.45,5.1427102]
[1761371928539,2.18186786,194.5,194.45,5.1427102]
[1761371928858,2.18186786,194.5,194.45,5.6727102]
[1761371929153,0.55435037,194.5,194.45,5.6727102]
[1761371929467,2.18186786,194.5,194.45,5.6727102]
[1761371929850,1.62751749,194.5,194.45,5.6727102]
[1761371930054,1.62751749,194.5,194.45,5.1427102]
[1761371930270,2.18186786,194.5,194.44,5.14297469]
[1761371930565,2.18186786,194.5,194.44,6.77049218]
[1761371931263,1.62751749,194.49,194.44,6.77049218]
[1761371931643,1.62751749,194.49,194.45,5.67253564]
[1761371934464,1.62751749,194.49,194.44,5.14297469]
[1761371934772,1.62751749,194.49,194.44,5.67297469]
[1761371937649,1.62751749,194.49,194.43,1.62751749]
[1761371937650,6.76925363,194.49,194.43,1.62751749]
[1761371939255,1.62751749,194.48,194.43,5.14315869]
[1761371939462,1.62751749,194.47,194.43,5.14315869]
[1761371939666,1.62751749,194.47,194.43,5.67315869]
[1761371939871,1.62751749,194.47,194.44,0.53]
[1761371941267,1.62751749,194.48,194.44,5.6728906]
[1761371941466,1.62751749,194.49,194.44,7.30040809]
[1761371941642,1.62751749,194.49,194.45,0.53]
[1761371942746,6.76896287,194.5,194.45,7.30013076]
[1761371942975,6.76896287,194.5,194.46,0.53]
[1761371944173,1.62751749,194.48,194.43,18.17723191]
[1761371944365,5.14144538,194.5,194.44,1.62751749]
[1761371944566,1.62751749,194.49,194.44,2.15751749]
[1761371945063,1.62751749,194.49,194.45,0.53]
[1761371945368,6.76896287,194.5,194.45,5.67262633]
[1761371946976,1.62751749,194.49,194.45,5.67262633]
[1761371949583,1.62751749,194.49,194.45,5.14262633]
[1761371949873,1.62751749,194.49,194.46,0.53]
[1761371951689,5.14112384,194.51,194.46,0.53]
[1761371951858,1.62751749,194.5,194.46,0.53]
[1761371952252,6.76864133,194.51,194.46,5.67242732]
[1761371952669,6.76864133,194.51,194.47,2.15751749]
[1761371952670,5.14112384,194.51,194.47,2.15751749]
[1761371952853,1.62751749,194.54,194.48,1.62751749]
[1761371953061,1.62751749,194.54,194.49,0.53]
[1761371953265,1.62751749,194.53,194.49,0.53]
[1761371953654,1.62751749,194.56,194.5,6.76890566]
[1761371954060,6.3536247,194.58,194.52,10.87647521]
[1761371954265,6.76658701,194.59,194.53,1.62751749]
[1761371954475,1.62751749,194.58,194.53,0.53]
[1761371954676,1.62751749,194.58,194.54,0.53]
[1761371955776,5.13906952,194.59,194.54,0.53]
[1761371956082,1.62751749,194.58,194.54,0.53]
[1761371956480,6.76679429,194.58,194.54,0.53]
[1761371956661,1.62751749,194.57,194.54,0.53]
[1761371956861,2.28751749,194.57,194.53,5.14055263]
[1761371957181,1.62751749,194.57,194.53,5.67055263]
[1761371957384,1.62751749,194.57,194.54,0.53]
[1761371959285,2.0,194.56,194.54,0.53]
[1761371959869,2.0,194.56,194.53,5.14055263]
[1761371960060,2.0,194.56,194.53,5.67055263]
[1761371960988,2.0,194.56,194.54,0.53]
[1761371961575,2.0,194.56,194.53,5.67055263]
[1761371962590,2.0,194.56,194.54,0.53]
[1761371962971,2.0,194.56,194.53,5.14055263]
[1761371963166,2.0,194.56,194.53,5.67055263]
[1761371964182,2.0,194.56,194.53,7.29807012]
[1761371964683,2.0,194.56,194.53,5.67055263]
[1761371964886,2.0,194.56,194.53,7.29807012]
[1761371965976,2.0,194.56,194.53,5.67055263]
[1761371966179,2.0,194.56,194.53,5.14055263]
[1761371966383,2.71,194.56,194.53,5.14055263]
[1761371968187,2.0,194.56,194.53,5.14055263]
[1761371968389,2.0,194.56,194.53,5.67055263]
[1761371969084,2.0,194.56,194.53,7.29807012]
[1761371969291,2.0,194.56,194.54,0.53]
[1761371972076,2.0,194.56,194.53,6.76807012]
[1761371972278,2.0,194.56,194.53,7.29807012]
[1761371972773,0.71,194.55,194.52,40.74082077]
[1761371973603,0.71,194.55,194.43,1.99999999]
[1761371973604,2.53799361,194.53,194.47,13.38491851]
[1761371973794,2.53799361,194.53,194.48,54.13638572]
[1761371973982,0.71,194.53,194.48,54.13638572]
[1761371974180,0.71,194.53,194.48,54.66638572]
[1761371974501,0.71,194.53,194.49,2.53799361]
[1761371976494,0.71,194.53,194.49,5.14156682]
[1761371977176,5.14013544,194.54,194.5,0.53]
[1761371977401,0.71,194.53,194.49,5.67156682]
[1761371982083,0.71,194.53,194.5,40.72133948]
[1761371985104,0.71,194.53,194.51,35.58]
[1761371985421,0.71,194.54,194.51,35.58]
[1761371985589,0.71,194.53,194.51,35.58]
[1761371988209,0.71,194.54,194.51,35.58]
[1761371990300,0.71,194.54,194.5,7.67937918]
[1761371990527,0.71,194.54,194.51,35.56]
[1761371991413,5.82983479,194.56,194.51,41.23110563]
[1761371991584,23.80667769,194.56,194.51,43.76909924]
[1761371991784,23.80667769,194.56,194.52,0.53]
[1761371992504,15.43884929,194.56,194.52,8.20878733]
[1761371992715,0.69,194.58,194.53,2.53799361]
[1761371993018,16.1280548,194.57,194.54,35.56]
[1761371993221,18.1280548,194.57,194.54,35.56]
[1761371993510,2.0,194.57,194.54,35.56]
[1761371993822,2.69,194.57,194.54,35.56]
[1761371995117,0.69,194.56,194.54,35.56]
[1761371995614,2.69,194.57,194.54,35.56]
[1761371996118,2.0,194.57,194.55,3.06799361]
[1761371996300,0.55435037,194.59,194.55,7.67796181]
[1761371996301,0.69,194.59,194.55,7.67796181]
[1761371996614,0.69,194.59,194.55,8.20796181]
[1761371996799,0.69,194.59,194.56,3.82473649]
[1761371996992,0.69,194.59,194.57,35.56]
[1761371997405,5.13851827,194.61,194.58,0.53]
[1761371997600,0.1,194.62,194.58,0.53]
[1761371997914,10.37703654,194.62,194.58,0.53]
[1761371998905,10.37703654,194.62,194.58,3.06799361]
[1761371999111,10.37703654,194.62,194.58,8.20719871]
[1761372000217,0.1,194.62,194.61,2.53799361]
[1761372000387,0.1,194.62,194.61,39.38117785]
[1761372000714,0.1,194.62,194.61,42.44917146]
[1761372000894,0.1,194.62,194.61,35.56]
[1761372001094,0.1,194.62,194.61,41.22848209]
[1761372001420,0.1,194.62,194.61,47.58560429]
[1761372002095,0.1,194.62,194.61,43.7664757]
[1761372003709,0.1,194.62,194.61,41.22848209]
[1761372004091,0.1,194.62,194.61,40.69848209]
[1761372005315,0.79,194.62,194.61,35.58]
[1761372007199,0.1,194.62,194.61,35.58]
[1761372007402,0.1,194.62,194.61,40.71848209]
[1761372007915,0.1,194.62,194.61,47.59752775]
[1761372010512,0.1,194.62,194.61,47.06752775]
[1761372010912,0.1,194.62,194.61,43.2564757]
[1761372012611,0.1,194.62,194.61,54.13295091]
[1761372012820,0.1,194.62,194.61,57.93568146]
[1761372013010,0.1,194.62,194.61,58.46568146]
[1761372013206,0.1,194.62,194.61,58.46432825]
[1761372014420,0.1,194.62,194.61,47.58785304]
[1761372014926,0.1,194.62,194.61,58.46432825]
[1761372019020,0.1,194.62,194.61,22.88432825]
[1761372019206,0.1,194.62,194.61,57.93432825]
[1761372019926,0.1,194.62,194.61,22.35432825]
[1761372020121,0.1,194.62,194.61,45.23432825]
[1761372020321,0.1,194.62,194.61,18.55295091]
[1761372020629,0.1,194.62,194.61,54.13295091]
[1761372021225,0.78,194.62,194.61,18.55295091]
[1761372021525,0.78,194.62,194.61,5.13848209]
[1761372021728,0.1,194.62,194.61,40.71848209]
[1761372022119,0.1,194.62,194.61,43.2564757]
[1761372022518,0.1,194.62,194.61,43.7864757]
[1761372022836,0.1,194.62,194.61,54.66295091]
[1761372023007,0.1,194.62,194.61,54.13295091]
[1761372023208,0.1,194.62,194.61,51.5949573]
[1761372023516,0.1,194.62,194.61,54.13295091]
[1761372023722,0.1,194.62,194.61,51.5949573]
[1761372023931,0.1,194.62,194.61,54.13295091]
[1761372027137,0.1,194.62,194.61,54.66295091]
[1761372030143,0.1,194.62,194.61,58.45643255]
[1761372030336,0.1,194.62,194.61,58.97028075]
[1761372030518,0.1,194.62,194.61,58.45643255]
[1761372030946,0.1,194.62,194.61,55.91843894]
[1761372031148,0.1,194.62,194.61,58.45643255]
[1761372031319,1e-08,194.62,194.61,58.45643255]
[1761372031732,1e-08,194.62,194.61,60.51325219]
[1761372032249,1e-08,194.62,194.61,58.45643255]